Cogmind - Beta 16.1 @@@ ROGUE MODE // 2026.02.02 @ 18:11:04 Player: arkn Result: Destroyed by H-71 Marshal with Heavy Mass Driver Performance ------------- Evolutions (7) 3500 Regions Visited (20) 4000 Robots Destroyed (178) 890 Value Destroyed (6575) 6575 Prototype IDs (50) 1000 Alien Tech Used (0) 0 Bonus (1476) 1476 TOTAL SCORE: 17441 Bonus ------- High Alert Combat Kills 46 Follower Combat Kills 480 Network Hubs Disabled 200 Aligned with FarCom 300 Met Optimus in HQ 500 Friendly Fire -50 Cogmind --------- Core Integrity 0/1300 Matter 250/300 Energy 98/100 System Corruption 16% Temperature Cool (0) Movement Core (50) Location -3/Research Parts ------- > --- POWER (1) -------- (None) > --- PROPULSION (6) --- (None) > --- UTILITY (10) ----- (None) > --- WEAPON (4) ------- (None) > --- INVENTORY (5) ---- Medium Storage Unit Advanced System Restoration Module Experimental Field Recycling Unit (0) Peak State ------------ > --- POWER ------------ Neutrino Core > --- PROPULSION ------- Improved Treads Centrium Heavy Treads Centrium Heavy Treads > --- UTILITY ---------- High-capacity Storage Unit Improved Signal Interpreter Experimental Terrain Scanner Advanced Terrain Scan Processor Advanced Targeting Computer Improved Target Analyzer Blink Core > --- WEAPON ----------- Hypervelocity Gauss Rifle KE Penetrator KE Penetrator Enhanced Coil Gun > --- INVENTORY -------- Flying Fortress v7 Improved Thermal Generator Cryofiber Web Advanced Heat Sink Cooling System Structural Scanner Machine Analyzer Advanced Visual Processing Unit Advanced Signal Interpreter Advanced Targeting Computer Coil Gun Coil Gun Improved Heavy Machine Gun Enhanced Gauss Cannon Enhanced Gauss Cannon Advanced EMP Blaster Improved Plasma Cutter [Rating: 116] Favorites ----------- Power Angular Momentum Engine Engine Angular Momentum Engine Power Core Nuclear Core Reactor Antimatter Reactor Propulsion Light Treads Treads Light Treads Leg Aluminum Leg Wheel Wheel Flight Unit Field Propulsion Array Utility High-capacity Storage Unit Device Blink Core Storage High-capacity Storage Unit Processor Advanced Targeting Computer Protection Hardened Medium Armor Plating Weapon Enhanced Autogun Energy Gun Heavy Particle Gun Energy Cannon Advanced Beam Cannon Ballistic Gun Enhanced Autogun Ballistic Cannon Light Cannon Launcher Advanced EMP Blaster Special Weapon Mining Laser Impact Weapon Hammer Slashing Weapon Axe Build | -11 -10 -10 -9 -9 -9 -8 -8 -8 -8 -8 -6 -5 -5 -5 -5 -5 -4 -4 -4 -3 ------- Run | Yrd Mat Min Mat Min Exi Min Mat Sto Rec Scr Fac Fac Ext Cet Arc Hub Fac Upp Upp Res Slots Evolved 14 | . . . 2 . . . 2 . . . 4 2 . . . . 2 . . 2 Power . | . . . . . . . . . . . . . . . . . . . . . Propulsion 4 | . . . 1 . . . . . . . 1 1 . . . . 1 . . . Utility 8 | . . . 1 . . . 1 . . . 2 1 . . . . 1 . . 2 Weapon 2 | . . . . . . . 1 . . . 1 . . . . . . . . . Parts Attached 173 | 5 5 2 26 6 . . 17 12 . 4 14 8 22 4 . 9 17 10 3 9 Power 16 | . 1 1 2 . . . 1 . . 1 1 1 3 . . 1 2 2 . . Engine 6 | . 1 1 1 . . . . . . 1 1 . . . . 1 . . . . Core 9 | . . . 1 . . . 1 . . . . 1 3 . . . 1 2 . . Reactor 1 | . . . . . . . . . . . . . . . . . 1 . . . Propulsion 52 | 2 . . 8 3 . . 3 4 . 3 . 2 10 2 . 1 4 3 3 4 Treads 35 | 2 . . 7 3 . . 3 4 . 3 . 1 9 2 . 1 . . . . Leg 2 | . . . 1 . . . . . . . . . . . . . 1 . . . Wheel 3 | . . . . . . . . . . . . . . . . . . 3 . . Hover . | . . . . . . . . . . . . . . . . . . . . . Flight 12 | . . . . . . . . . . . . 1 1 . . . 3 . 3 4 Utility 42 | 1 3 . 5 1 . . 2 3 . . 6 1 1 1 . 3 8 4 . 3 Device 13 | 1 . . 2 . . . 1 1 . . 2 . . . . . 4 1 . 1 Storage 5 | . 3 . 1 . . . . . . . . . . . . . . 1 . . Processor 16 | . . . . 1 . . . 1 . . 3 1 1 . . 2 4 2 . 1 Hackware . | . . . . . . . . . . . . . . . . . . . . . Protection 8 | . . . 2 . . . 1 1 . . 1 . . 1 . 1 . . . 1 Artifact . | . . . . . . . . . . . . . . . . . . . . . Weapon 63 | 2 1 1 11 2 . . 11 5 . . 7 4 8 1 . 4 3 1 . 2 Energy Gun 13 | . . . 2 . . . 6 3 . . . . . . . . 2 . . . Energy Cannon 3 | . . . 2 . . . 1 . . . . . . . . . . . . . Ballistic Gun 28 | 2 . . 3 . . . 4 2 . . 4 4 5 . . 2 1 1 . . Ballistic Cannon 9 | . 1 1 2 . . . . . . . 1 . 2 . . 1 . . . 1 Launcher 4 | . . . 1 1 . . . . . . . . 1 . . . . . . 1 Special Weapon 2 | . . . 1 . . . . . . . . . . 1 . . . . . . Impact Weapon 1 | . . . . 1 . . . . . . . . . . . . . . . . Slashing Weapon 3 | . . . . . . . . . . . 2 . . . . 1 . . . . Piercing Weapon . | . . . . . . . . . . . . . . . . . . . . . Special Melee Weapon . | . . . . . . . . . . . . . . . . . . . . . Unidentified Prototypes 18 | . . . 4 . . . 2 2 . . 1 1 1 1 . . 3 . . 3 Corrupted Parts 2 | . . . . . . . . . . . . . . 2 . . . . . . System Corruption 13 | . . . . . . . . . . . . . . 13 . . . . . . Parts Lost 62 | . . . 1 4 . . 2 1 . . 2 8 3 . 4 10 . 13 2 12 Power 7 | . . . 1 . . . . . . . . 1 1 . 1 . . 2 1 . Propulsion 24 | . . . . 2 . . 1 . . . 1 5 1 . 1 3 . 3 1 6 Utility 17 | . . . . 2 . . 1 1 . . 1 . . . . 3 . 4 . 5 Weapon 14 | . . . . . . . . . . . . 2 1 . 2 4 . 4 . 1 Highest Loss Streak 10 | . . . 1 3 . . 1 1 . . 1 3 2 . 4 6 . 10 1 10 To Critical Strikes 2 | . . . . . . . . . . . . . . . . . . 1 1 . Average Backups 14 | 3 6 10 15 16 17 16 16 16 15 16 16 17 17 17 17 15 4 3 4 4 Power . | . . . . . . . . . . . . . . . . . . . . . Propulsion 2 | . 2 4 3 3 3 4 4 3 4 3 1 1 1 1 1 . . . . . Utility 5 | 1 2 3 5 4 4 4 4 5 4 5 6 7 8 9 9 8 2 2 4 3 Weapon 5 | . 2 3 5 8 10 8 6 7 7 7 8 8 7 6 7 6 1 . . . Tool/Special . | . . . . . . . . . . . . . . . . . . . . . Unused Backups 35 | . . 2 9 . . . 4 3 . . 3 1 . . . 7 1 . . 5 Power . | . . . . . . . . . . . . . . . . . . . . . Propulsion 8 | . . 1 4 . . . 1 1 . . . . . . . . . . . 1 Utility 15 | . . 1 3 . . . 2 . . . 1 . . . . 5 . . . 3 Weapon 10 | . . . 1 . . . 1 2 . . 2 1 . . . 2 1 . . . Tool/Special 2 | . . . 1 . . . . . . . . . . . . . . . . 1 Average Slot Usage (%) 89 | . 96 99 98 97 77 94 99 100 100 100 96 79 92 90 85 75 61 48 35 35 Engine 4 | . 13 14 6 11 11 11 5 . . 7 6 1 . . . . . . 2 . Core 2 | . . . 4 . . . 3 9 9 1 . 1 4 5 4 . . 4 1 . Treads 22 | . 28 28 29 32 33 33 26 27 27 27 25 8 22 19 17 13 . . 5 1 Device 12 | . 11 14 11 10 11 11 14 11 18 15 12 11 14 10 11 11 11 6 5 7 Storage 7 | . 13 14 11 11 11 11 9 9 9 9 6 5 5 5 5 4 . 1 5 . Processor 9 | . . . . 9 11 11 9 6 . . 11 16 18 23 23 18 28 25 15 10 Protection 4 | . . . 10 . . . 3 9 9 11 6 4 . . . 3 . . . 1 Energy Gun 4 | . . . . . . . 10 16 9 9 8 1 3 . . . 2 . . . Energy Cannon 1 | . . . 7 10 . 8 3 . . . . . . . . . . . . . Ballistic Gun 11 | . 17 13 10 10 . 8 13 10 18 17 11 15 13 18 15 12 4 2 . . Ballistic Cannon 1 | . 10 14 2 . . . . . . . 1 . 3 . . 1 2 . . 1 Peak Build Rating 116 | 6 9 14 24 23 20 26 36 47 46 51 74 103 98 116 115 107 113 103 45 74 Average Rating 46 | 4 8 9 20 21 18 24 33 39 46 49 66 86 83 108 112 101 78 44 30 44 On Entrance 45 | 1 6 9 14 21 17 20 26 36 46 46 51 73 98 80 115 96 24 97 35 45 Avg Prop Armor Cover (%) 8 | . . . 4 . . . . . . 5 . 6 6 . 19 12 . 5 12 15 Naked Turns 15 | . . . . . . . . . . . . . . . . . . . . 15 Heaviest Build 91 | 3 30 36 61 61 50 57 70 74 74 86 89 88 89 91 81 86 45 42 32 35 Greatest Support 183 | 40 40 40 63 66 66 66 66 66 62 63 83 83 115 183 183 183 45 45 23 80 Greatest Overweight (x) 7 | . . . . . . . 1 1 1 1 1 1 3 . . 2 7 7 2 2 Average Overweight (x) . | . . . . . . . . . 1 1 . 1 . . . . . 1 . . Largest Inventory Capacity 20 | 5 15 15 20 20 20 20 20 20 20 20 20 20 20 20 20 20 5 10 10 10 Average Capacity 16 | 5 10 15 15 20 20 20 20 20 20 20 20 20 20 20 20 19 5 6 10 6 Most Carried 20 | 5 10 15 20 20 20 20 20 20 19 20 20 20 20 20 20 20 5 5 4 6 Average Carried 15 | 3 6 13 15 15 18 19 19 19 18 19 19 19 19 20 20 18 4 3 4 4 Final Capacity 20 | 5 15 15 20 20 20 20 20 20 20 20 20 20 20 20 20 5 5 10 10 5 Final Carried 20 | 5 10 15 20 18 20 20 20 18 19 20 20 19 20 20 20 5 5 4 4 3 Class Distribution -------------------- 34% | Mutant 27% | Skirmisher 11% | Tank 7% | Scavenger-Mutant 6% | Scavenger-Skirmisher 4% | Scavenger-Assassin 3% | Assassin Dominant Class ---------------- Mutant | -10/Materials Mutant | -10/Mines Mutant | -9/Materials Mutant | -9/Mines Mutant | -9/Exiles Mutant | -8/Mines Skirmisher | -8/Materials Skirmisher | -8/Storage Skirmisher | -8/Recycling Tank | -8/Scraptown Skirmisher | -6/Factory Skirmisher | -5/Factory Scavenger-Skirmisher | -5/Extension Scavenger-Skirmisher | -5/Cetus Scavenger-Skirmisher | -5/Archives Scavenger-Assassin | -5/Hub_04(d) Gunner | -4/Factory Mutant | -4/Upper Caves Mutant | -4/Upper Caves Mutant | -3/Research Resources | -11 -10 -10 -9 -9 -9 -8 -8 -8 -8 -8 -6 -5 -5 -5 -5 -5 -4 -4 -4 -3 ----------- Run | Yrd Mat Min Mat Min Exi Min Mat Sto Rec Scr Fac Fac Ext Cet Arc Hub Fac Upp Upp Res Matter Collected 5916 | 252 26 249 919 3 . 39 586 327 8 60 293 598 1313 97 . 390 113 529 36 78 Remotely 81 | . . . . . . . . . . . . . . . . . . 81 . . Salvage Created 7112 | 90 141 69 1331 56 . . 908 938 15 . 307 662 1192 318 . 538 163 327 . 57 Parts 411 | 6 13 6 104 5 . . 36 60 4 . 17 34 53 15 . 33 14 11 . . Haulers Intercepted 10 | . 1 . 2 . . . 3 3 . . . . . . . . . . . 1 Recyclers Shooed 1 | . . . . . . . . . . . . 1 . . . . . . . . Parts Field Recycled . | . . . . . . . . . . . . . . . . . . . . . Retrieved Matter . | . . . . . . . . . . . . . . . . . . . . . Parts Self-Destructed 15 | . . . . . . . . . . . . . . . . . . 15 . . Prevented . | . . . . . . . . . . . . . . . . . . . . . Parts Restored . | . . . . . . . . . . . . . . . . . . . . . Kills | -11 -10 -10 -9 -9 -9 -8 -8 -8 -8 -8 -6 -5 -5 -5 -5 -5 -4 -4 -4 -3 ------- Run | Yrd Mat Min Mat Min Exi Min Mat Sto Rec Scr Fac Fac Ext Cet Arc Hub Fac Upp Upp Res Combat Hostiles Destroyed 140 | . 4 4 33 8 . . 14 18 . . 8 12 18 4 . 8 5 4 . . Guns 87 | . 3 2 9 2 . . 10 18 . . 5 12 12 . . 6 5 3 . . Cannons 32 | . 1 2 16 1 . . 3 . . . 3 . 3 . . 2 . 1 . . AOE 17 | . . . 7 5 . . . . . . . . 3 2 . . . . . . Classes Destroyed 15 | 3 4 1 2 2 . . . 2 . . 1 . . . . . . . . . Worker 8 | 1 . . 2 . . . 1 1 . . . . . . . 3 . . . . Builder 4 | . . . 2 . . . . . 1 . 1 . . . . . . . . . Tunneler 3 | 1 1 . . . . . . . . . . . . . . 1 . . . . Hauler 10 | . 1 . 2 . . . 3 3 . . . . . . . . . . . 1 Recycler 3 | 1 . . 1 . . . . . . . . . 1 . . . . . . . Operator 4 | . . . . . . . . 1 . . 1 . 2 . . . . . . . Watcher 10 | . 1 . 3 . . . 3 . . . . . 2 1 . . . . . . Swarmer 38 | . 3 3 9 3 . . . 5 . . 3 3 5 . . . 4 . . . Grunt 41 | . 1 . 15 . . . 10 4 . . 2 . 3 . . 4 . 2 . . Brawler 1 | . . . 1 . . . . . . . . . . . . . . . . . Sentry 35 | . . 1 8 . . . 4 8 . . 1 6 5 . . 1 . 1 . . Demolisher 1 | . . . . 1 . . . . . . . . . . . . . . . . Hunter 6 | . . . . . . . . 1 . . . 1 4 . . . . . . . Programmer 9 | . . . . . . . . . . . 2 2 . . . 3 1 1 . . Cetus Guard 4 | . . . . . . . . . . . . . . 4 . . . . . . Assembled 4 | . . . . 4 . . . . . . . . . . . . . . . . Thug 1 | . . . . . . . . . . . . . 1 . . . . . . . Best Kill Streak 6 | 2 3 3 6 4 . . 3 5 1 . 5 4 4 5 . 5 4 3 . 1 Combat Bots Only 5 | . 2 3 5 4 . . 3 4 . . 4 4 4 4 . 5 4 3 . . Max Kills in Single Turn 2 | 1 1 1 2 2 . . 1 2 1 . 2 1 2 2 . 1 1 1 . 1 Gunslinging 1 | . . . . . . . . 1 . . . . . . . . . . . . Exploded 2 | . . . 2 2 . . . . . . . . 2 2 . . . . . . Melee . | . . . . . . . . . . . . . . . . . . . . . Uniques/NPCs Destroyed . | . . . . . . . . . . . . . . . . . . . . . Combat | -11 -10 -10 -9 -9 -9 -8 -8 -8 -8 -8 -6 -5 -5 -5 -5 -5 -4 -4 -4 -3 -------- Run | Yrd Mat Min Mat Min Exi Min Mat Sto Rec Scr Fac Fac Ext Cet Arc Hub Fac Upp Upp Res Hostile Shots Fired 1248 | . 52 20 89 42 . . 70 63 . . 72 88 92 9 47 174 42 149 24 215 Missed 399 | . 14 11 27 14 . . 22 19 . . 14 18 27 2 19 57 13 47 7 88 Hits 849 | . 38 9 62 28 . . 48 44 . . 58 70 65 7 28 117 29 102 17 127 Melee 7 | . . . . 5 . . 2 . . . . . . . . . . . . . Projectile 842 | . 38 9 62 23 . . 46 44 . . 58 70 65 7 28 117 29 102 17 127 AOE 10 | . . . . 8 . . . . . . . 2 . . . . . . . . Critical Strikes 46 | . 1 1 2 . . . 5 4 . . . 2 3 . 1 7 2 6 1 11 Part Disruptions 1 | . . . . . . . . . . . . . . . . . . 1 . . Damage Taken 15435 | . 319 97 741 636 . . 803 539 . . 710 1665 1285 191 738 2725 402 1905 301 2378 Core 3583 | . 62 . 86 141 . . 77 88 . . 125 40 136 . 55 512 141 616 132 1372 Absorbed by Shields 42 | . . . . . . . . . . . . . . . . . 42 . . . Regen/Repaired (Parts) 100 | . . . 100 . . . . . . . . . . . . . . . . . Core Remaining (%) 60 | 100 . 75 . . . 43 . . . 70 85 . . . . 25 . . 22 . Volleys Fired 458 | 7 33 20 87 17 . . 54 42 1 . 27 38 71 4 . 20 7 21 . 9 Largest 4 | 2 2 2 2 2 . . 3 3 3 . 4 3 4 1 . 3 2 2 . 1 Hottest 260 | 40 50 50 100 93 . . 190 166 105 . 185 140 174 36 . 107 225 260 . 47 Shots Fired 1068 | 14 66 40 150 28 . . 162 114 3 . 73 112 192 4 1 62 12 26 . 9 Gun 813 | 14 51 20 63 11 . . 128 114 3 . 60 112 148 . 1 56 8 24 . . Cannon 223 | . 15 20 67 12 . . 34 . . . 13 . 41 . . 6 4 2 . 9 Launcher 25 | . . . 13 5 . . . . . . . . 3 4 . . . . . . Special 7 | . . . 7 . . . . . . . . . . . . . . . . . Kinetic 679 | 14 66 40 68 11 . . 30 43 2 . 41 106 156 . 1 62 9 21 . 9 Thermal 363 | . . . 69 12 . . 132 71 1 . 32 6 33 . . . 2 5 . . Explosive 18 | . . . 13 5 . . . . . . . . . . . . . . . . Electromagnetic 8 | . . . . . . . . . . . . . 3 4 . . 1 . . . Robot Hit Streak 30 | 7 4 11 19 3 . . 16 23 1 . 14 17 27 10 . 11 4 22 . 30 Robot Miss Streak 7 | 1 5 7 4 3 . . 4 2 1 . 6 3 4 . 1 4 1 1 . . Penetration Max 2 | . . . . . . . . . . . . . 2 . . 1 1 . . . Secondary Targets 7 | . 1 . . . . . . 2 . . 1 2 1 . . . . . . . Max Gunslinging Chain 1 | . 1 . . . . . . 1 . . 1 1 1 . . . . . . . Shots Hit Robots 689 | 12 32 25 83 11 . . 106 76 1 . 47 85 131 2 . 42 6 22 . 8 Core Hits 313 | 6 11 6 53 12 . . 42 33 1 . 21 35 52 8 . 18 5 8 . 2 Critical Kills 13 | . . . 1 . . . . . . . . . 6 . . 3 1 2 . . Critical Parts Destroyed 16 | . . . 1 . . . . . . . . 2 9 . . 1 . 3 . . Critical Strikes 45 | . 1 . 2 . . . 2 1 . . 2 2 22 . . 5 1 6 . 1 Burn 6 | . . . . . . . 2 1 . . . . 3 . . . . . . . Meltdown 1 | . . . 1 . . . . . . . . . . . . . . . . . Destroy 29 | . . . 1 . . . . . . . . 2 16 . . 4 1 5 . . Blast 9 | . 1 . . . . . . . . . 2 . 3 . . 1 . 1 . 1 Melee Attacks 28 | . . . . 4 . . . . . . 11 1 . . . 11 . 1 . . Impact 4 | . . . . 4 . . . . . . . . . . . . . . . . Slashing 24 | . . . . . . . . . . . 11 1 . . . 11 . 1 . . Piercing . | . . . . . . . . . . . . . . . . . . . . . Sneak Attacks 4 | . . . . . . . . . . . . . . . . 4 . . . . Combat Hostiles . | . . . . . . . . . . . . . . . . . . . . . Follow-up Attacks . | . . . . . . . . . . . . . . . . . . . . . Damage Inflicted 16715 | 96 403 315 2369 611 . . 2271 1454 18 . 1108 1848 3207 710 . 1278 144 623 . 260 Guns 11168 | 96 216 104 649 99 . . 1796 1454 18 . 749 1848 2568 . . 883 144 544 . . Cannons 3199 | . 187 211 946 101 . . 475 . . . 358 . 481 . . 107 . 73 . 260 Explosions 2061 | . . . 774 410 . . . . . . . . 145 710 . 22 . . . . Melee 262 | . . . . . . . . . . . . . . . . 262 . . . . Ramming 25 | . . . . 1 . . . . . . 1 . 13 . . 4 . 6 . . Kinetic 9246 | 96 403 315 753 99 . . 460 398 18 . 577 1726 2549 . . 990 117 485 . 260 Thermal 5439 | . . . 876 101 . . 1811 1056 . . 530 122 500 311 . . . 132 . . Explosive 1150 | . . . 740 410 . . . . . . . . . . . . . . . . Electromagnetic 593 | . . . . . . . . . . . . . 145 399 . 22 27 . . . Impact . | . . . . . . . . . . . . . . . . . . . . . Slashing 262 | . . . . . . . . . . . . . . . . 262 . . . . Piercing . | . . . . . . . . . . . . . . . . . . . . . Highest Corruption 21 | . . . 7 7 7 7 . . . . 3 4 4 17 17 21 5 17 17 16 Average Corruption 8 | . . . 5 7 7 7 . . . . 1 3 4 14 17 17 4 16 17 8 Corruption Purged . | . . . . . . . . . . . . . . . . . . . . . Corruption Blocked . | . . . . . . . . . . . . . . . . . . . . . Effects 262 | . . . 27 15 11 17 . . . . 6 5 38 18 6 45 9 44 13 8 Message Errors 60 | . . . 7 4 2 4 . . . . 2 1 10 3 2 10 2 8 4 1 Matter Fused 65 | . . . 7 3 3 1 . . . . 2 1 9 6 . 10 2 15 4 2 Heat Flow Errors 29 | . . . 3 1 . 4 . . . . 1 . 5 1 . 5 . 6 2 1 Energy Discharges 35 | . . . 4 2 4 6 . . . . 1 2 1 2 . 5 2 6 . . Parts Rejected 6 | . . . . 3 . . . . . . . . . . . 3 . . . . Parts Fused 6 | . . . . . . . . . . . . . 1 . . 2 . 1 1 1 Data Loss (minor) 32 | . . . 3 2 1 . . . . . . . 7 4 2 4 1 4 2 2 Data Loss (major) 10 | . . . . . 1 2 . . . . . . 1 1 1 1 1 2 . . Misfires 6 | . . . 1 . . . . . . . . . 1 . 1 2 . 1 . . Alerts 5 | . . . 1 . . . . . . . . . 1 1 . 1 1 . . . Misdirections 3 | . . . . . . . . . . . . . . . . 2 . . . 1 Weapon Failures 5 | . . . 1 . . . . . . . . 1 2 . . . . 1 . . Overload Shots 2 | . . . . . . . . . . . . . . . . . 1 1 . . Overflow Damage 172 | . . . 18 20 . . . . . . . . . . . 134 . . . . Projectiles 2 | . . . 2 . . . . . . . . . . . . . . . . . Explosions 71 | . . . 16 20 . . . . . . . . . . . 35 . . . . Melee 99 | . . . . . . . . . . . . . . . . 99 . . . . Knockbacks 9 | . 2 . . . . . . . . . 2 . 4 . . 1 . . . . Impact . | . . . . . . . . . . . . . . . . . . . . . Kinetic 8 | . 2 . . . . . . . . . 2 . 3 . . 1 . . . . Secondary 1 | . . . . . . . . . . . . . 1 . . . . . . . Self-Inflicted Damage 161 | . . . 17 29 . . . . . . . . 6 . . 106 . 3 . . Shots 4 | . . . 1 2 . . . . . . . . . . . 1 . . . . Rammed 5 | . . . . 1 . . . . . . 1 . 1 . . . . 2 . . Targets Rammed 6 | . . . . 1 . . . . . . 1 . 1 . . 1 . 2 . . Kicked . | . . . . . . . . . . . . . . . . . . . . . Crushed 1 | . . . . . . . . . . . . . . . . 1 . . . . Highest Temperature 622 | . 20 37 326 200 . 203 438 299 22 . 622 303 207 263 4 262 176 253 168 179 Average Temperature 98 | . 8 10 65 88 . 102 129 62 16 . 251 113 32 145 4 71 65 105 82 110 Received Heat Transfer 2323 | . 30 36 354 . . . 441 171 . . 117 204 225 . 108 423 . 214 . . Effects 17 | . . . . . . . . . . . 10 7 . . . . . . . . Shutdowns 2 | . . . . . . . . . . . 2 . . . . . . . . . Energy Bleed 1 | . . . . . . . . . . . 1 . . . . . . . . . Interference 9 | . . . . . . . . . . . 3 6 . . . . . . . . Matter Decay 2 | . . . . . . . . . . . 1 1 . . . . . . . . Damage (minor) 1 | . . . . . . . . . . . 1 . . . . . . . . . Damage (major) 2 | . . . . . . . . . . . 2 . . . . . . . . . Siege Activations . | . . . . . . . . . . . . . . . . . . . . . Martial Activations . | . . . . . . . . . . . . . . . . . . . . . Shielding Activations . | . . . . . . . . . . . . . . . . . . . . . Robots Disrupted . | . . . . . . . . . . . . . . . . . . . . . Combat Hostiles . | . . . . . . . . . . . . . . . . . . . . . Robots Corrupted 2 | . . . . . . . . . . . . . . 2 . . . . . . Combat Hostiles 2 | . . . . . . . . . . . . . . 2 . . . . . . Parts Fried 1 | . . . . . . . . . . . . . . 1 . . . . . . Impact Corruptions . | . . . . . . . . . . . . . . . . . . . . . Robots Melted 2 | . . . 1 . . . 1 . . . . . . . . . . . . . Combat Hostiles 2 | . . . 1 . . . 1 . . . . . . . . . . . . . Parts Melted 14 | . . . . . . . 7 . . . 3 1 2 . . . . 1 . . Heat Transferred 10415 | . . . 1567 185 . . 3510 2099 . . 1184 275 1147 250 . . . 198 . . Parts Sabotaged . | . . . . . . . . . . . . . . . . . . . . . Parts Stolen . | . . . . . . . . . . . . . . . . . . . . . Parts Stripped . | . . . . . . . . . . . . . . . . . . . . . Power Chain Reactions 2 | . . . . . . . . . . . . . . 2 . . . . . . Alert | -11 -10 -10 -9 -9 -9 -8 -8 -8 -8 -8 -6 -5 -5 -5 -5 -5 -4 -4 -4 -3 ------- Run | Yrd Mat Min Mat Min Exi Min Mat Sto Rec Scr Fac Fac Ext Cet Arc Hub Fac Upp Upp Res Maximum Alert Level 2 | . . . 2 . . . 1 . . . . . . . . 1 . . . . Low Security (%) 86 | 100 100 100 44 100 . 100 86 100 100 . 100 100 100 100 100 65 100 . . 100 Level 1 10 | . . . 37 . . . 13 . . . . . . . . 34 . . . . Level 2 3 | . . . 18 . . . . . . . . . . . . . . . . . Level 3 . | . . . . . . . . . . . . . . . . . . . . . Level 4 . | . . . . . . . . . . . . . . . . . . . . . Level 5 . | . . . . . . . . . . . . . . . . . . . . . High Security . | . . . . . . . . . . . . . . . . . . . . . Max Security . | . . . . . . . . . . . . . . . . . . . . . Peak Influence 508 | 5 52 62 508 154 . . 247 186 69 . 91 90 132 123 15 318 101 . . 19 Initial 118 | . 3 . . 118 . . . 102 69 . . . . . 10 . 98 . . . Average 80 | 1 8 7 240 58 . . 80 63 20 . 12 27 54 51 2 113 44 . . . Influence Increases 4869 | 15 133 90 1094 116 . . 577 572 5 . 266 343 649 230 17 485 171 80 . 26 Destroy 0b10 Robot/C 2880 | . 80 80 660 80 . . 320 360 . . 160 240 420 140 . 160 100 80 . . Destroy 0b10 Robot/NC 220 | 15 15 . 50 . . . 35 25 5 . 10 . 35 5 . 20 . . . 5 Destroy Leader 660 | . 24 10 180 10 . . 92 116 . . 30 80 56 . . 40 20 . . 2 Allied During Kill 44 | . . . . . . . 10 . . . . . 27 7 . . . . . . Successful Hack 91 | . 14 . 26 . . . 14 5 . . 11 . 7 14 . . . . . . Disable Machine 390 | . . . 60 . . . 15 60 . . 45 15 15 30 15 105 15 . . 15 Destroy Structure 389 | . . . 73 26 . . 16 6 . . 10 8 44 34 2 160 6 . . 4 Partial Spotted 30 | . . . . . . . . . . . . . . . . . 30 . . . Lose Combat Pursuer 165 | . . . 45 . . . 75 . . . . . 45 . . . . . . . Influence Decreases 4869 | 10 138 90 788 422 . . 333 639 182 . 266 343 649 203 44 283 273 180 . 26 Entered New Map 598 | . 2 . . 188 . . . 142 108 . . . . . 17 . 104 37 . . Time Decay 3541 | 10 136 90 628 194 . . 307 487 74 . 246 283 418 183 27 193 169 70 . 26 Lost Part 353 | . . . 10 40 . . 20 10 . . 20 60 30 . . 90 . 73 . . Lost Ally 149 | . . . . . . . 6 . . . . . 123 20 . . . . . . Purge Threat 228 | . . . 150 . . . . . . . . . 78 . . . . . . . Squads Dispatched 42 | . 1 . 7 . . . 3 5 . . 6 9 1 . . 5 1 . . 4 Investigation 11 | . . . 5 . . . 2 2 . . 1 1 . . . . . . . . Extermination 9 | . . . . . . . . . . . 3 1 . . . 2 1 . . 2 Reinforcement 14 | . 1 . 2 . . . 1 . . . 2 2 1 . . 3 . . . 2 Assault 4 | . . . . . . . . 2 . . . 2 . . . . . . . . Garrison 4 | . . . . . . . . 1 . . . 3 . . . . . . . . Intercept . | . . . . . . . . . . . . . . . . . . . . . Searches Triggered . | . . . . . . . . . . . . . . . . . . . . . Construction Impeded 3 | . . . 1 . . . . . . . . 1 1 . . . . . . . Haulers Reinforced 2 | . . . . . . . . . . . 1 . . . . . . . . 1 Active Scanning Responses . | . . . . . . . . . . . . . . . . . . . . . Cargo Convoy Interrupts . | . . . . . . . . . . . . . . . . . . . . . Stealth | -11 -10 -10 -9 -9 -9 -8 -8 -8 -8 -8 -6 -5 -5 -5 -5 -5 -4 -4 -4 -3 --------- Run | Yrd Mat Min Mat Min Exi Min Mat Sto Rec Scr Fac Fac Ext Cet Arc Hub Fac Upp Upp Res Distress Signals 12 | . . . 1 . . . 3 1 . . . . 3 2 . 1 . . . 1 Communications Jammed . | . . . . . . . . . . . . . . . . . . . . . Distress Signals . | . . . . . . . . . . . . . . . . . . . . . Times Spotted 277 | . 11 5 44 9 . . 23 23 . . 9 14 22 6 5 48 10 20 4 24 Peak Tracking Total 21 | . 3 3 4 12 . . 4 6 . . 3 3 5 5 4 21 5 5 2 12 Tactical Retreats 11 | . . . 3 1 . . 4 . . . . . 3 . . . . . . . Traps | -11 -10 -10 -9 -9 -9 -8 -8 -8 -8 -8 -6 -5 -5 -5 -5 -5 -4 -4 -4 -3 ------- Run | Yrd Mat Min Mat Min Exi Min Mat Sto Rec Scr Fac Fac Ext Cet Arc Hub Fac Upp Upp Res Traps Triggered 18 | . . . 4 . . . 1 3 . . 1 1 5 . . . 3 . . . Indirectly . | . . . . . . . . . . . . . . . . . . . . . Trap Hack Attempts . | . . . . . . . . . . . . . . . . . . . . . Triggered . | . . . . . . . . . . . . . . . . . . . . . Disarmed . | . . . . . . . . . . . . . . . . . . . . . Reprogrammed . | . . . . . . . . . . . . . . . . . . . . . Reused . | . . . . . . . . . . . . . . . . . . . . . Traps Extracted . | . . . . . . . . . . . . . . . . . . . . . Installed . | . . . . . . . . . . . . . . . . . . . . . Triggered . | . . . . . . . . . . . . . . . . . . . . . Most Traps Carried 4 | . . 4 . . . . . . . . . . . . . . . . . . Machines | -11 -10 -10 -9 -9 -9 -8 -8 -8 -8 -8 -6 -5 -5 -5 -5 -5 -4 -4 -4 -3 ---------- Run | Yrd Mat Min Mat Min Exi Min Mat Sto Rec Scr Fac Fac Ext Cet Arc Hub Fac Upp Upp Res Machines Disabled 27 | . . . 4 . . . 1 4 . . 3 1 1 3 1 7 1 . . 1 Max in Single Turn 5 | . . . 3 . . . 1 1 . . 1 1 1 1 1 5 1 . . 1 Garrison Access 3 | . . . . . . . . 1 . . 1 1 . . . . . . . . Network Hub 1 | . . . . . . . . . . . . . . . . 1 . . . . Machines Repaired . | . . . . . . . . . . . . . . . . . . . . . Machines Dismantled 4 | . . . . . . . . . . . . . . 3 1 . . . . . Machines Sabotaged . | . . . . . . . . . . . . . . . . . . . . . Overloaded Fab Kills . | . . . . . . . . . . . . . . . . . . . . . Hacking | -11 -10 -10 -9 -9 -9 -8 -8 -8 -8 -8 -6 -5 -5 -5 -5 -5 -4 -4 -4 -3 --------- Run | Yrd Mat Min Mat Min Exi Min Mat Sto Rec Scr Fac Fac Ext Cet Arc Hub Fac Upp Upp Res Machines Accessed 48 | . 4 . 14 . 2 . 3 4 . 1 4 1 7 4 . 1 1 2 . . Terminals 31 | . 3 . 9 . . . 3 3 . . 1 . 7 4 . 1 . . . . Fabricators 1 | . . . . . . . . . . . 1 . . . . . . . . . Repair Stations 2 | . . . 2 . . . . . . . . . . . . . . . . . Recycling Units 3 | . 1 . 1 . . . . . . . 1 . . . . . . . . . Scanalyzers 2 | . . . 2 . . . . . . . . . . . . . . . . . Garrison Access 4 | . . . . . . . . 1 . . 1 1 . . . . 1 . . . Total Hacks 120 | . 13 . 39 . 5 . 8 11 . 3 10 2 13 10 . 2 2 2 . . Successful 65 | . 7 . 22 . 5 . 3 5 . 3 6 . 8 4 . . . 2 . . Failed 54 | . 6 . 16 . . . 5 6 . . 4 2 5 6 . 2 2 . . . Catastrophic 12 | . . . 6 . . . . 2 . . 1 . 1 1 . . 1 . . . Database Lockouts 1 | . . . 1 . . . . . . . . . . . . . . . . . Manual 76 | . 13 . 27 . 1 . 8 9 . . 7 . 9 . . 2 . . . . Terminals 81 | . 11 . 25 . . . 8 9 . . 3 . 13 10 . 2 . . . . Fabricators 3 | . . . . . . . . . . . 3 . . . . . . . . . Repair Stations 6 | . . . 6 . . . . . . . . . . . . . . . . . Recycling Units 8 | . 2 . 3 . . . . . . . 3 . . . . . . . . . Scanalyzers 5 | . . . 5 . . . . . . . . . . . . . . . . . Garrison Access 7 | . . . . . . . . 2 . . 1 2 . . . . 2 . . . Terminal Hacks 34 | . 2 . 9 . 5 . 2 2 . 3 1 . 4 4 . . . 2 . . Record 13 | . . . . . 4 . . 1 . 3 . . . 4 . . . 1 . . Part Schematic 3 | . . . 3 . . . . . . . . . . . . . . . . . Prototype ID Bank 1 | . . . 1 . . . . . . . . . . . . . . . . . Open Door 5 | . . . . . . . . 1 . . . . 3 . . . . 1 . . Branch Access Points 1 | . . . . . . . 1 . . . . . . . . . . . . . Emergency Access Points 1 | . 1 . . . . . . . . . . . . . . . . . . . Terminal Index 2 | . . . . . . . 1 . . . 1 . . . . . . . . . Unreport Threat 2 | . . . 1 . . . . . . . . . 1 . . . . . . . Locate Traps 1 | . . . 1 . . . . . . . . . . . . . . . . . Registered Components 2 | . . . 2 . . . . . . . . . . . . . . . . . Zone Layout 2 | . 1 . 1 . . . . . . . . . . . . . . . . . Proto ID Catalog 1 | . . . . . 1 . . . . . . . . . . . . . . . Fabricator Hacks 1 | . . . . . . . . . . . 1 . . . . . . . . . Network Status 1 | . . . . . . . . . . . 1 . . . . . . . . . Repair Station Hacks 2 | . . . 2 . . . . . . . . . . . . . . . . . Scan Component 1 | . . . 1 . . . . . . . . . . . . . . . . . Repair 1 | . . . 1 . . . . . . . . . . . . . . . . . Recycling Unit Hacks . | . . . . . . . . . . . . . . . . . . . . . Scanalyzer 4 | . . . 4 . . . . . . . . . . . . . . . . . Retrieve Study 4 | . . . 4 . . . . . . . . . . . . . . . . . Garrison Access Hacks 2 | . . . . . . . . 1 . . 1 . . . . . . . . . Seal Access 2 | . . . . . . . . 1 . . 1 . . . . . . . . . Unauthorized Hacks 20 | . 5 . 7 . . . 1 2 . . 1 . 4 . . . . . . . Terminals 15 | . 4 . 3 . . . 1 2 . . 1 . 4 . . . . . . . Track 7 | . 2 . 2 . . . 1 . . . . . 2 . . . . . . . Botnet 7 | . 2 . 1 . . . . 1 . . 1 . 2 . . . . . . . Operators 1 | . . . . . . . . 1 . . . . . . . . . . . . Fabricators . | . . . . . . . . . . . . . . . . . . . . . Repair Stations 1 | . . . 1 . . . . . . . . . . . . . . . . . Mechanics 1 | . . . 1 . . . . . . . . . . . . . . . . . Recycling Units 4 | . 1 . 3 . . . . . . . . . . . . . . . . . Monitor 1 | . . . 1 . . . . . . . . . . . . . . . . . Recyclers 2 | . 1 . 1 . . . . . . . . . . . . . . . . . Mask 1 | . . . 1 . . . . . . . . . . . . . . . . . Scanalyzers . | . . . . . . . . . . . . . . . . . . . . . Garrison Access . | . . . . . . . . . . . . . . . . . . . . . Data Cores Recovered 4 | . . . . . . . . 1 . . 1 . 2 . . . . . . . Used 1 | . . . . . . . . 1 . . . . . . . . . . . . Hacking Detections 32 | . 4 . 13 . . . 2 3 . . 3 1 3 2 . . 1 . . . Full Trace Events 10 | . 2 . 4 . . . 1 1 . . 1 1 . . . . . . . . Feedback Events . | . . . . . . . . . . . . . . . . . . . . . Feedback Blocked . | . . . . . . . . . . . . . . . . . . . . . Robot Schematics Acquired . | . . . . . . . . . . . . . . . . . . . . . Robots Built . | . . . . . . . . . . . . . . . . . . . . . Authchips . | . . . . . . . . . . . . . . . . . . . . . Time . | . . . . . . . . . . . . . . . . . . . . . Total Robot Build Rating . | . . . . . . . . . . . . . . . . . . . . . Part Schematics Acquired 3 | . . . 3 . . . . . . . . . . . . . . . . . Parts Built . | . . . . . . . . . . . . . . . . . . . . . Authchips . | . . . . . . . . . . . . . . . . . . . . . Time . | . . . . . . . . . . . . . . . . . . . . . Total Part Build Rating . | . . . . . . . . . . . . . . . . . . . . . Part Studies Acquired 2 | . . . 2 . . . . . . . . . . . . . . . . . Parts Repaired 1 | . . . 1 . . . . . . . . . . . . . . . . . Time 26 | . . . 26 . . . . . . . . . . . . . . . . . Parts Recycled . | . . . . . . . . . . . . . . . . . . . . . Recycled Matter . | . . . . . . . . . . . . . . . . . . . . . Retrieved Matter . | . . . . . . . . . . . . . . . . . . . . . Retrieved Components . | . . . . . . . . . . . . . . . . . . . . . Parts Scanalyzed . | . . . . . . . . . . . . . . . . . . . . . Part Schematics Acquired . | . . . . . . . . . . . . . . . . . . . . . Parts Damaged . | . . . . . . . . . . . . . . . . . . . . . Bothacking | -11 -10 -10 -9 -9 -9 -8 -8 -8 -8 -8 -6 -5 -5 -5 -5 -5 -4 -4 -4 -3 ------------ Run | Yrd Mat Min Mat Min Exi Min Mat Sto Rec Scr Fac Fac Ext Cet Arc Hub Fac Upp Upp Res Used RIF Installer . | . . . . . . . . . . . . . . . . . . . . . Robots Hacked . | . . . . . . . . . . . . . . . . . . . . . Non-combat . | . . . . . . . . . . . . . . . . . . . . . Combat . | . . . . . . . . . . . . . . . . . . . . . Robot Hacks Applied . | . . . . . . . . . . . . . . . . . . . . . Relay Couplers Released 6 | . . . . . . . . . . . . 2 . . . 4 . . . . Machine Destruction 2 | . . . . . . . . . . . . 2 . . . . . . . . Programmers 4 | . . . . . . . . . . . . . . . . 4 . . . . Fabnet Peak Effective % . | . . . . . . . . . . . . . . . . . . . . . Robots Rewired 9 | . . . . . . . . . . . . . 9 . . . . . . . Allies Hacked . | . . . . . . . . . . . . . . . . . . . . . Hacks Repelled . | . . . . . . . . . . . . . . . . . . . . . Allies | -11 -10 -10 -9 -9 -9 -8 -8 -8 -8 -8 -6 -5 -5 -5 -5 -5 -4 -4 -4 -3 -------- Run | Yrd Mat Min Mat Min Exi Min Mat Sto Rec Scr Fac Fac Ext Cet Arc Hub Fac Upp Upp Res Total Allies 17 | . . . . 3 . . . 2 . . . . 12 . . . . . . . Largest Group 8 | . . . . 3 3 3 3 2 2 2 . . 8 1 . . . . . . Highest-Rated Group 253 | . . . . 40 40 40 40 62 62 62 . . 253 39 . . . . . . Highest-Rated Ally 39 | . . . . 16 16 16 16 31 31 31 . . 39 39 . . . . . . Total Orders . | . . . . . . . . . . . . . . . . . . . . . Ally Attacks 94 | . . . . . . . 38 . . . . . 41 15 . . . . . . Total Damage 1374 | . . . . . . . 392 . . . . . 762 220 . . . . . . Kills 11 | . . . . . . . 3 . . . . . 5 3 . . . . . . Allies Corrupted . | . . . . . . . . . . . . . . . . . . . . . Allies Melted . | . . . . . . . . . . . . . . . . . . . . . Intel | -11 -10 -10 -9 -9 -9 -8 -8 -8 -8 -8 -6 -5 -5 -5 -5 -5 -4 -4 -4 -3 ------- Run | Yrd Mat Min Mat Min Exi Min Mat Sto Rec Scr Fac Fac Ext Cet Arc Hub Fac Upp Upp Res Active Infowar (turns) 7975 | 35 755 853 2554 72 . . . . . . 723 262 652 380 148 913 531 97 . . Terrain 3069 | . . . . . . . . . . . 723 262 652 380 148 904 . . . . Seismic 4269 | 35 755 853 2554 72 . . . . . . . . . . . . . . . . Machine Analysis 637 | . . . . . . . . . . . . . . . . 9 531 97 . . Robot Analysis Total . | . . . . . . . . . . . . . . . . . . . . . Derelict Logs Recovered 6 | . . 3 . 1 . . . . . . . . . . . . . 1 1 . Drone Launches . | . . . . . . . . . . . . . . . . . . . . . Drone Recoveries . | . . . . . . . . . . . . . . . . . . . . . Exploration | -11 -10 -10 -9 -9 -9 -8 -8 -8 -8 -8 -6 -5 -5 -5 -5 -5 -4 -4 -4 -3 ------------- Run | Yrd Mat Min Mat Min Exi Min Mat Sto Rec Scr Fac Fac Ext Cet Arc Hub Fac Upp Upp Res Turns Passed 19723 | 112 916 853 2885 549 362 542 1914 1717 263 2073 1318 788 1459 424 148 918 531 1149 247 555 Spaces Moved 9348 | 54 465 485 1151 296 226 310 679 620 125 946 553 322 631 219 47 318 617 703 144 437 Core 358 | 6 . . . . . . . . . . . . . . . 2 57 192 . 101 Treads 7256 | 48 465 485 1151 296 226 310 679 620 125 946 553 103 506 219 47 303 . 30 128 16 Legs 28 | . . . . . . . . . . . . . . . . . 28 . . . Wheels 309 | . . . . . . . . . . . . . . . . . . 309 . . Hover . | . . . . . . . . . . . . . . . . . . . . . Flight 1397 | . . . . . . . . . . . . 219 125 . . 13 532 172 16 320 Fastest Speed 29 | 50 160 160 160 160 160 160 160 160 208 186 162 150 129 160 160 50 34 34 60 29 Average Speed 159 | 147 160 160 160 160 160 160 181 202 208 204 190 175 157 160 160 155 60 143 159 79 Slowest Speed 400 | 160 160 160 160 160 160 160 200 208 208 216 216 216 280 160 160 160 400 400 220 160 Overloaded Moves 55 | . . . . . . . . . . . . . . . . . . . . 55 Propulsion Burnouts . | . . . . . . . . . . . . . . . . . . . . . Robots Hopped 6 | . . . . . . . . . . . . . . . . 2 3 1 . . Potential Cave-ins . | . . . . . . . . . . . . . . . . . . . . . Cave-ins Triggered . | . . . . . . . . . . . . . . . . . . . . . Teleports 62 | . . . . . . . . 3 . 15 . 6 2 1 1 6 . 20 2 6 Exploration Rate (%) 50 | 5 71 92 88 48 61 66 57 74 31 66 17 7 63 82 68 44 12 81 23 10 Regions Visited 20 Branch Regions 13 Pre-discovered Areas 2 | . . 1 . . 1 . . . . . . . . . . . . . . . Known Exits Taken 9 | . . . . . . . 1 . . . 1 1 1 1 1 1 . 1 1 . Unknown Exits Taken 11 | 1 1 1 1 1 1 1 . 1 1 1 . . . . . . 1 . . . Scrap Searched 13 | . . 1 . . . 1 . . . 9 . . . . . . . 1 1 . Spaces Dug 27 | . . . 7 1 . . . . . . 8 1 . . . 6 1 1 . 2 Terrain Destroyed 369 | . . . 72 29 . . 12 . . . 9 7 32 22 1 178 3 2 . 2 Melee 16 | . . . . 1 . . . . . . 8 . . . . 6 . 1 . . Projectile 77 | . . . 7 . . . 12 . . . 1 7 32 . 1 11 3 1 . 2 AOE 276 | . . . 65 28 . . . . . . . . . 22 . 161 . . . . Terrain Rammed . | . . . . . . . . . . . . . . . . . . . . . Walls Destroyed . | . . . . . . . . . . . . . . . . . . . . . Machines Disabled . | . . . . . . . . . . . . . . . . . . . . . Actions | -11 -10 -10 -9 -9 -9 -8 -8 -8 -8 -8 -6 -5 -5 -5 -5 -5 -4 -4 -4 -3 --------- Run | Yrd Mat Min Mat Min Exi Min Mat Sto Rec Scr Fac Fac Ext Cet Arc Hub Fac Upp Upp Res Total 13184 | 73 582 531 2044 335 228 356 1245 1012 127 1084 754 456 947 260 114 675 759 806 160 636 Wait 2700 | 4 69 6 709 2 . 43 456 314 1 125 114 76 100 . 62 308 66 67 14 164 Move 9316 | 53 464 484 1150 295 225 309 678 619 124 945 552 321 630 218 46 313 610 700 143 437 Hop 6 | . . . . . . . . . . . . . . . . 2 3 1 . . Pick Up 114 | 4 7 11 20 1 1 2 13 5 1 3 13 8 6 . . 6 4 2 . 7 Fast Attach 104 | 5 1 2 9 2 . . 10 4 . 2 2 2 24 2 . 5 16 9 3 6 Attach 54 | . 3 . 2 5 . 2 3 3 . 1 7 5 8 . . 6 3 3 . 3 Detach 10 | . 1 . . 2 . . . . . . 1 . 1 . . . 4 . . 1 Swap 102 | . 2 . 37 6 . . 8 9 . 3 15 3 12 4 . . 3 . . . Drop 135 | . 2 8 30 . 2 . 23 11 . 5 11 2 13 4 . 3 12 . . 9 Fire 458 | 7 33 20 87 17 . . 54 42 1 . 27 38 71 4 . 20 7 21 . 9 Melee 28 | . . . . 4 . . . . . . 11 1 . . . 11 . 1 . . Ram 3 | . . . . . . . . . . . . . 1 . . . . 2 . . Kick . | . . . . . . . . . . . . . . . . . . . . . Crush 3 | . . . . 1 . . . . . . 1 . . . . 1 . . . . Escape Stasis 35 | . . . . . . . . 4 . . . . . . . . 31 . . . Rewire 82 | . . . . . . . . 1 . . . . 81 . . . . . . . Trap . | . . . . . . . . . . . . . . . . . . . . . Miscellaneous 34 | . . . . . . . . . . . . . . 28 6 . . . . . Route ------- -11/Scrapyard -10/Materials (discovered 4 exits: *Mat x3 / [*Min]) -10/Mines (discovered 3 exits: *Mat x2 / [*Sub]) -9/Materials (discovered 3 exits: *Mat x2 / [*Min]) -9/Mines -9/Exiles (discovered 2 exits: [*Min x2]) -8/Mines -8/Materials (discovered 3 exits: [*Fac] / *Sto x2) -8/Storage (discovered 2 exits: [*Fac] / [*Rec]) -8/Recycling -8/Scraptown (discovered 2 exits: *Fac x2) -6/Factory (discovered 2 exits: *Fac x2) -5/Factory -5/Extension (discovered 2 exits: *Fac / *Cet) -5/Cetus -5/Archives (discovered 2 exits: Fac / *Hub) -5/Hub_04(d) (discovered 4 exits: *Fac x4) -4/Factory -4/Upper Caves -4/Upper Caves -3/Research History --------- Turn | Location | Event 4 | -11/Scrapyard | Discovered new exit (range 15) 113 | -11/Scrapyard | Entered Materials 300 | -10/Materials | Build established: Mutant 329 | -10/Materials | Discovered new exit (range 7) 571 | -10/Materials | Discovered new exit (range 10) 681 | -10/Materials | Discovered new exit (range 7) 1007 | -10/Materials | Discovered new exit (range 8) 1029 | -10/Materials | Entered Mines 1038 | -10/Mines | Met a Derelict bent on vengeance 1091 | -10/Mines | Found a hidden stash of uninstalled traps 1280 | -10/Mines | Learned 2 Materials zone layouts 1285 | -10/Mines | Discovered new exit (range 7) 1289 | -10/Mines | Discovered new exit (range 13) 1347 | -10/Mines | Learned Materials terminal intel 1749 | -10/Mines | Discovered new exit (range 11) 1832 | -10/Mines | Learned location of Storage (-8) 1882 | -10/Mines | Entered Materials 1882 | -9/Materials | Evolved 2 slots: Propulsion x1, Utility x1 1884 | -9/Materials | Loaded intel: 12 terminal locations 1958 | -9/Materials | Repaired Lgt. Treads 3099 | -9/Materials | Build established: Scavenger-Mutant 3497 | -9/Materials | Discovered new exit (range 16) 3641 | -9/Materials | Build established: Mutant 3924 | -9/Materials | Discovered new exit (range 15) 3947 | -9/Materials | Central database locked down 4446 | -9/Materials | Build established: Scavenger-Mutant 4620 | -9/Materials | Discovered new exit (range 8) 4767 | -9/Materials | Entered Mines 4768 | -9/Mines | Assembled infested the area 4848 | -9/Mines | Core integrity fell below 50% 4876 | -9/Mines | Lost 3 parts (2n1u) 4889 | -9/Mines | Build established: Mutant 4960 | -9/Mines | Assisted by bots powering up and referring to "LRC-V3" 5069 | -9/Mines | Learned 2 Materials zone layouts 5159 | -9/Mines | Deemed a non-threat by the Exiles lab entrance 5159 | -9/Mines | Discovered new exit (range 5) 5217 | -9/Mines | Received a Rocket Launcher from a helpful Derelict 5316 | -9/Mines | Entered Exiles 5316 | -9/Exiles | Accompanied by 3 allies 5337 | -9/Exiles | Discovered new exit (range 15) 5356 | -9/Exiles | Met 8R-AWN 5380 | -9/Exiles | Met EX-HEX 5427 | -9/Exiles | Met EX-BIN 5444 | -9/Exiles | Aligned with FarCom system 5446 | -9/Exiles | Given EX-Vault access code 5499 | -9/Exiles | Opened EX-Vault 5511 | -9/Exiles | Found Flying Fortress v7 5544 | -9/Exiles | Warned to stay clear of 0b10 Research branches 5597 | -9/Exiles | Met EX-DEC 5603 | -9/Exiles | Learned location of Zion (-7) 5662 | -9/Exiles | Discovered new exit (range 12) 5678 | -9/Exiles | Left Exiles lab with Flying Fortress v7 5678 | -9/Exiles | Entered Mines 5678 | -8/Mines | Accompanied by 3 allies 6186 | -8/Mines | Discovered new exit (range 8) 6220 | -8/Mines | Entered Materials 6220 | -8/Materials | Accompanied by 3 allies 6220 | -8/Materials | Evolved 2 slots: Utility x1, Weapon x1 6406 | -8/Materials | Discovered new exit (range 11) 6522 | -8/Materials | Build established: Skirmisher 6708 | -8/Materials | Lost 3 allies 7628 | -8/Materials | Discovered new exit (range 16) 8023 | -8/Materials | Identified exit to Storage 8134 | -8/Materials | Entered Storage 9095 | -8/Storage | Discovered new exit (range 16) 9407 | -8/Storage | Garrison activated, responded to threat 9416 | -8/Storage | Found Blink Core 9806 | -8/Storage | Met a pair of Derelict thieves 9834 | -8/Storage | Used back door to open Recycling access 9834 | -8/Storage | Discovered new exit (range 5) 9851 | -8/Storage | Entered Recycling 9851 | -8/Recycling | Accompanied by 2 allies 10059 | -8/Recycling | Scanned before Scraplab entrance 10090 | -8/Recycling | Entered Scraplab 10107 | -8/Recycling | Discovered new exit (range 3) 10114 | -8/Recycling | Entered Scraptown 10114 | -8/Scraptown | Accompanied by 2 allies 10358 | -8/Scraptown | Visited Shadow of the Wyrm 10406 | -8/Scraptown | Visited Bundlers 10411 | -8/Scraptown | Build established: Tank 10546 | -8/Scraptown | Visited Awakened 10609 | -8/Scraptown | Visited Cave Peace 10642 | -8/Scraptown | Visited Fellowship of the Rings 10740 | -8/Scraptown | Visited Comm Corps 10936 | -8/Scraptown | Discovered new exit (range 13) 11187 | -8/Scraptown | Visited Infowarlord's Domain 11201 | -8/Scraptown | Found Exp. Terrain Scanner 11242 | -8/Scraptown | Visited Junk Repository 11272 | -8/Scraptown | Visited Chapter 10 12044 | -8/Scraptown | Met Optimus 12044 | -8/Scraptown | Accepted into 0bPrime 12176 | -8/Scraptown | Discovered new exit (range 5) 12187 | -8/Scraptown | Entered Factory 12187 | -6/Factory | Evolved 4 slots: Propulsion x1, Utility x2, Weapon x1 12341 | -6/Factory | Discovered new exit (range 24) 13028 | -6/Factory | Build established: Skirmisher 13326 | -6/Factory | Discovered new exit (range 28) 13387 | -6/Factory | Build established: Assassin 13444 | -6/Factory | Identified exit to Factory 13505 | -6/Factory | Entered another Factory area 13505 | -5/Factory | Evolved 2 slots: Propulsion x1, Utility x1 13676 | -5/Factory | Lost 3 parts (2n1w) 13836 | -5/Factory | Lost 3 parts (1p2n) 13908 | -5/Factory | Build established: Skirmisher 14198 | -5/Factory | Discovered new exit (range 11) 14291 | -5/Factory | Identified exit to Extension 14293 | -5/Factory | Entered Extension 14979 | -5/Extension | Build established: Scavenger-Skirmisher 14995 | -5/Extension | Rescued a captive Derelict 15225 | -5/Extension | Rescued a captive Derelict 15428 | -5/Extension | Lost 3 allies 15515 | -5/Extension | Build established: Scavenger-Gunner 15527 | -5/Extension | Rescued a captive Derelict 15681 | -5/Extension | Discovered new exit (range 10) 15683 | -5/Extension | Discovered new exit (range 6) 15704 | -5/Extension | Identified exit to Cetus 15720 | -5/Extension | Identified exit to Factory 15752 | -5/Extension | Entered Cetus 15752 | -5/Cetus | Accompanied by 1 ally 15775 | -5/Cetus | Spotted Cetus Guard 15775 | -5/Cetus | Spotted Cetus Guard 15778 | -5/Cetus | Spotted Cetus Guard 15778 | -5/Cetus | Spotted Cetus Guard 15785 | -5/Cetus | Destroyed Cetus Guard 15785 | -5/Cetus | Destroyed Cetus Guard 15786 | -5/Cetus | Destroyed Cetus Guard 15787 | -5/Cetus | Destroyed Cetus Guard 15836 | -5/Cetus | System corruption reached 10% 15957 | -5/Cetus | Discovered new exit (range 20) 16079 | -5/Cetus | Build established: Scavenger-Skirmisher 16087 | -5/Cetus | Found a strange terminal 16142 | -5/Cetus | Spotted Cetus Guard 16142 | -5/Cetus | Spotted Cetus Guard 16175 | -5/Cetus | Identified exit to Archives 16176 | -5/Cetus | Entered Archives 16237 | -5/Archives | Unable to access archive contents 16244 | -5/Archives | Discovered exit to Factory (range 25) 16273 | -5/Archives | Discovered new exit (range 20) 16322 | -5/Archives | Identified exit to Hub_04(d) 16324 | -5/Archives | Entered Hub_04(d) 16355 | -5/Hub_04(d) | Lost 4 parts (1p1n2w) 16366 | -5/Hub_04(d) | Discovered exit to Factory (range 30) 16506 | -5/Hub_04(d) | Discovered exit to Factory (range 22) 16520 | -5/Hub_04(d) | Discovered exit to Factory (range 25) 16702 | -5/Hub_04(d) | Build established: Scavenger-Assassin 16922 | -5/Hub_04(d) | Network Hub disabled 16954 | -5/Hub_04(d) | Lost 3 parts (1u2w) 17131 | -5/Hub_04(d) | Disrupted transfer network 17195 | -5/Hub_04(d) | Discovered exit to Factory (range 12) 17218 | -5/Hub_04(d) | Core integrity fell below 50% 17220 | -5/Hub_04(d) | Spotted Lightning 17225 | -5/Hub_04(d) | Spotted Lightning 17227 | -5/Hub_04(d) | Spotted Lightning 17242 | -5/Hub_04(d) | Entered Factory 17242 | -4/Factory | Evolved 2 slots: Propulsion x1, Utility x1 17272 | -4/Factory | Lost 6 parts (3n1u2w) 17770 | -4/Factory | Discovered new exit (range 5) 17773 | -4/Factory | Entered Upper Caves 17791 | -4/Upper Caves | Learned Research terminal intel 17846 | -4/Upper Caves | System corruption reached 10% 17901 | -4/Upper Caves | Lost 10 parts (1p3n3u3w) 18009 | -4/Upper Caves | Build established: Mutant 18367 | -4/Upper Caves | Core integrity fell below 50% 18520 | -4/Upper Caves | Lost 3 parts (1p1u1w) 18638 | -4/Upper Caves | Discovered new exit (range 5) 18640 | -4/Upper Caves | Identified exit to Upper Caves 18853 | -4/Upper Caves | Build established: Scavenger-Mutant 18922 | -4/Upper Caves | Entered another Upper Caves area 19052 | -4/Upper Caves | Identified exit to Research 19061 | -4/Upper Caves | Encountered a Warlord checkpoint 19169 | -4/Upper Caves | Entered Research 19169 | -3/Research | Evolved 2 slots: Utility x2 19170 | -3/Research | Loaded intel: 22 terminal locations 19233 | -3/Research | Found Prototype Launcher 19233 | -3/Research | Identified Adv. Micro-nuke Launcher 19260 | -3/Research | Build established: Mutant 19303 | -3/Research | Found Prototype Processor 19303 | -3/Research | Identified Exp. Target Analyzer 19532 | -3/Research | Spotted B-86 Titan 19599 | -3/Research | Lost 10 parts (6n3u1w) 19691 | -3/Research | System corruption reached 10% 19697 | -3/Research | Core integrity fell below 50% 19709 | -3/Research | Core integrity fell below 20% 19724 | -3/Research | Destroyed by H-71 Marshal with Heavy Mass Driver Last Messages --------------- 19565_ Imp. Signal Interpreter destroyed. 19568_ Cld. Nuclear Pulse Thruster destroyed. 19575_ Blink Core suddenly shrinks, drawing all nearby mass into a quantum tunnel. 19575_ Adv. Cryofiber Web ripped away by subspace vortex. 19575_ Tractor Beam grabbed from subspace vortex. 19593_ ALERT: Potential suspicious activity detected, Programmers report to Research Zone 8V. 19604_ System corrupted: Component data lost. 19621_ System corrupted: Heat flow error (+225). 19637_ System corrupted: Tractor Beam fused. 19655_ System corrupted: Component data lost. 19686_ System corrupted: Matter fused (-8). 19691_ Tractor Beam destroyed. 19693_ Adv. Targeting Computer destroyed. 19707_ System corrupted: Matter fused (-9). 19709_ Blink Core suddenly shrinks, drawing all nearby mass into a quantum tunnel. 19709_ Blink Core blasted off. 19714_ ALERT: Hostiles spotted, dispatching reinforcements to Terminal R001. 19723_ Penetrated by Slug. 19723_ Slug penetrates Door. 19723_ W-44 Eye sends out distress signal. Map ----- +----------------------------------------------------+ | ?????????# #???????????# #?????????# | | ?????????# #???#+??????# #?????????##### | | ?????????# ##### ###########+###########??????? | | ?????????# ??? | | ?????????# ??? | | ?????????# ??? | | ?????????# ???? | | ??????????????##########+#################### ???? | | ????????????????????# #???????????????????? | | ????????????????????# #???????????????????? | | ????????????????????# """" #???????????????????? | | ????????????????????# """" #???????????????????? | | ????????????????????# """" #???????????????????? | | ????????????????????# """" #???????????????????? | | ????????????????????# #???????????????????? | | ????????????????????# #???????????????????? | | ????????????????????# #???????????????????? | | ????????????????????##########???????????????????? | | ?????????????????????????????????????????????????? | | ?????????????????????????????????????????????????? | | ?????????????????????????????????????????????????? | | ?????????????????????????????????#???????????????? | | ??????####+####+###########???? #???????????????? | | ??? % %#?? #???????????????? | | ??? % # #???????????????? | | ??? hh @/ = #???????????????? | | ????######+#########+## # #???????????????? | | ???????????????# # #?? #???????????????? | | ???????????????# # #????###???????????????? | | ???????????????# # #??????????????????????? | | ??T????????????# # #??????????????????????? | | ???????????????# # #??????????????????????? | | ???????????????# # #?????????????????# # | | ???????????????######## #?????????????????# | | ??????????????????????# #?????????????????# | | ??????????????????????# #?????????????????# | | ??????????????????????# #?????????????????# !! | | ??????????????????????# w#?????????????????# ! | | ?????????????????????? s?????????????????? ! | | ?????????????????????? Y s??s??????????????? | | ??????????????????????? ?s??ss????????????? | | ?????????????????????????????????????????????? | | ?????????????????????????????????????????????? ### | | ?????????????????????????????????????????????????? | | ?????????????????????????????????????????????????? | | ?????????????????????????????????????????????????? | | ?????????????????????????????????????????????????? | | ?????????????????????????????????????????????????? | | ?????????????????????????????????????????????????? | | ???"T"???????????????????????????????????????????? | +----------------------------------------------------+ Best States ------------- Heat Dissipation 62 Energy Generation 25 Energy Capacity 325 Matter Stores 300 Matter Capacity 300 Sight Range 16 Terrain Scan Range 30 Terrain Scan Density 210 Power Amplification 30 Base Temperature (-) 200 Armor Coverage 450 Evasion (%) 63 Targeting Accuracy 48 Target Analysis 6 Recoil Reduction 5 Item Schematics ----------------- Seismic Detector | -9/Materials | Hacked Lrg. Storage Unit | -9/Materials | Hacked Mining Laser | -9/Materials | Hacked Robot Schematics ------------------ None Fabricated ------------ Nothing Repaired ---------- Lgt. Treads | 28% | -9/Materials Studied --------- Lgt. Treads | -9/Materials | Hacked Imp. Treads | -9/Materials | Hacked Alien Tech Used ----------------- None Achievements -------------- Perfect Aim Challenges ------------ None Game ------ Seed ChipShadeMallet Manual? 0 Play Time 03:32:52 Cumulative 285.8 hours Start 2026.02.01 @ 05:43:06 End 2026.02.02 @ 18:11:04 Sessions 3 Manual Loads 0 Difficulty Rogue Special Mode None Game No. 127 Rogue 127 Adventurer 0 Explorer 0 Win Type - Total 5 Types 5/0/0/0/0/0/0/0/0/0 Lore% 54 Gallery% 56 Achievement% 42 Wizard Run 0 Options --------- Layout 0 ASCII 0 Keyboard 0 Movement Numpad Keybinds 0 Fullscreen 2 Font 24/Smallcaps Map View 113x50 Zoom Use 0% Tactical HUD 1 Map Filters NONE Filters NONE Steam 1 RUN: 7781d08f-b435-4f43-8594-6c8bfec555c3